Cogmind - Beta 11.1 @@@ ROGUE MODE // 2022.05.09 @ 19:10:53 Player: Haldron Result: Destroyed by G-34 Mercenary with Small Laser Performance ------------- Evolutions (1) 500 Regions Visited (4) 800 Robots Destroyed (105) 525 Value Destroyed (2479) 2479 Prototype IDs (1) 20 Alien Tech Used (0) 0 Bonus (411) 411 TOTAL SCORE: 4735 Bonus ------- High Alert Combat Kills 513 Friendly Fire -102 Cogmind --------- Core Integrity 0/400 Matter 284/300 Energy 250/250 System Corruption 0% Temperature Cool (18) Movement Rolling (195) Ox7 Location -9/Mines Parts ------- > --- POWER (1) -------- Ion Engine > --- PROPULSION (2) --- Armored Wheel > --- UTILITY (4) ------ Huge Storage Unit Experimental Sensor Array Signal Interpreter > --- WEAPON (2) ------- Light Cannon Light Cannon > --- INVENTORY (25) --- Light Nuclear Core Compact Wheel Armored Wheel Cesium-ion Thruster Cesium-ion Thruster Cesium-ion Thruster Cesium-ion Thruster High-capacity Matter Pod (200) Structural Scanner Improved Sensor Array ECM Suite Hacking Suite Hacking Suite Hacking Suite Heavy Particle Cannon Light Cannon Mini Grenade Launcher Mini Grenade Launcher Improved Grenade Launcher Improved Grenade Launcher Improved Datajack Katana Peak State ------------ > --- POWER ------------ Improved Ion Engine > --- PROPULSION ------- Compact Wheel Compact Wheel > --- UTILITY ---------- Huge Storage Unit Improved Sensor Array Signal Interpreter Hardened Medium Armor Plating > --- WEAPON ----------- Beamcaster Heavy Assault Rifle > --- INVENTORY -------- Light Nuclear Core Light Nuclear Core Compact Wheel Armored Wheel Armored Wheel Cesium-ion Thruster Cesium-ion Thruster Cesium-ion Thruster Cesium-ion Thruster High-capacity Matter Pod Structural Scanner Light Armor Plating Hacking Suite Hacking Suite Hacking Suite Heavy Particle Cannon Light Cannon Light Cannon Light Cannon Mini Grenade Launcher Mini Grenade Launcher Improved Grenade Launcher Improved Grenade Launcher Improved Datajack [Rating: 24] Favorites ----------- Power Ion Engine Engine Ion Engine Power Core Light Nuclear Core Propulsion Light Treads Treads Light Treads Wheel Compact Wheel Utility Seismic Detector Device Seismic Detector Storage Large Storage Unit Processor Signal Interpreter Protection Light Armor Plating Weapon Medium Laser Energy Gun Medium Laser Ballistic Gun Heavy Assault Rifle Ballistic Cannon Light Cannon Launcher Improved Grenade Launcher Build | -11 -10 -10 -9 -9 ------- Run | Scr Mat Min Mat Min Slots Evolved 2 | . . . 2 . Power . | . . . . . Propulsion . | . . . . . Utility 2 | . . . 2 . Weapon . | . . . . . Parts Attached 64 | 7 7 2 35 13 Power 5 | 1 . . 2 2 Engine 4 | 1 . . 2 1 Core 1 | . . . . 1 Reactor . | . . . . . Propulsion 12 | 2 2 1 4 3 Treads 6 | 2 2 1 1 . Leg . | . . . . . Wheel 6 | . . . 3 3 Hover . | . . . . . Flight . | . . . . . Utility 18 | 2 2 1 9 4 Device 6 | 1 . 1 2 2 Storage 5 | 1 2 . 2 . Processor 1 | . . . . 1 Hackware . | . . . . . Protection 6 | . . . 5 1 Artifact . | . . . . . Weapon 29 | 2 3 . 20 4 Energy Gun 7 | 1 . . 5 1 Energy Cannon . | . . . . . Ballistic Gun 6 | 1 1 . 4 . Ballistic Cannon 6 | . 1 . 3 2 Launcher 10 | . 1 . 8 1 Special Weapon . | . . . . . Impact Weapon . | . . . . . Slashing Weapon . | . . . . . Piercing Weapon . | . . . . . Special Melee Weapon . | . . . . . Unidentified Prototypes 1 | . . . . 1 Parts Lost 11 | . . . 3 8 Power 2 | . . . . 2 Propulsion 2 | . . . . 2 Utility 4 | . . . 2 2 Weapon 3 | . . . 1 2 Highest Loss Streak 6 | . . . 2 6 To Critical Strikes . | . . . . . Average Slot Usage (%) 98 | . 99 100 98 90 Engine 12 | . 14 14 11 9 Treads 18 | . 27 28 12 . Wheel 6 | . . . 9 19 Device 15 | . 14 14 21 4 Storage 12 | . 14 14 11 11 Processor 1 | . . . . 11 Protection 5 | . . . 10 12 Energy Gun 11 | . 14 14 10 7 Ballistic Gun 7 | . 10 . 8 8 Ballistic Cannon 5 | . 3 14 1 5 Naked Turns . | . . . . . Heaviest Build 108 | 14 31 31 108 106 Greatest Support 40 | 40 40 40 40 32 Greatest Overweight (x) 7 | . . . 5 7 Average Overweight (x) 1 | . . . 1 3 Largest Inventory Capacity 25 | 8 15 15 25 25 Average Capacity 16 | 7 10 15 19 25 Most Carried 25 | 5 15 15 25 25 Average Carried 15 | 2 8 14 17 24 Final Capacity 25 | 8 15 15 25 25 Final Carried 25 | 5 15 15 25 22 Class Distribution -------------------- 80% | Mutant 19% | Scavenger-Mutant Dominant Class ---------------- Mutant | -10/Materials Mutant | -10/Mines Mutant | -9/Materials Scavenger-Mutant | -9/Mines Resources | -11 -10 -10 -9 -9 ----------- Run | Scr Mat Min Mat Min Matter Collected 1870 | 279 215 220 891 265 Remotely . | . . . . . Salvage Created 3036 | 132 507 257 1890 250 Parts 193 | 6 34 10 123 20 Haulers Intercepted 8 | . 2 . 6 . Recyclers Shooed 4 | . 2 . 2 . Parts Field Recycled . | . . . . . Retrieved Matter . | . . . . . Parts Self-Destructed . | . . . . . Prevented . | . . . . . Kills | -11 -10 -10 -9 -9 ------- Run | Scr Mat Min Mat Min Combat Hostiles Destroyed 66 | . 8 6 42 10 Guns 28 | . 5 2 17 4 Cannons 10 | . . 4 2 4 AOE 27 | . 2 . 23 2 Classes Destroyed 14 | 2 4 2 5 1 Worker 5 | . . 1 4 . Builder 4 | . 2 . 2 . Tunneler 2 | 2 . . . . Hauler 8 | . 2 . 6 . Recycler 7 | 1 . 1 4 1 Mechanic 3 | . . . 3 . Operator 4 | . . . 4 . Watcher 8 | . 3 . 5 . Swarmer 13 | . . 2 5 6 Grunt 42 | . 8 4 27 3 Brawler 1 | . . . 1 . Duelist 1 | . . . . 1 Protector 1 | . . . 1 . Sentry 8 | . . . 8 . Best Kill Streak 12 | 3 4 4 12 3 Combat Bots Only 8 | . 3 2 8 3 Max Kills in Single Turn 5 | 1 1 2 5 2 Gunslinging . | . . . . . Exploded 4 | . 1 . 4 2 Melee . | . . . . . Uniques/NPCs Destroyed . | . . . . . Combat | -11 -10 -10 -9 -9 -------- Run | Scr Mat Min Mat Min Damage Taken 2717 | . 406 144 1282 885 Core 479 | . 52 22 257 148 Absorbed by Shields . | . . . . . Regen/Repaired (Parts) 122 | . 122 . . . Core Remaining (%) 85 | 100 . 70 . . Volleys Fired 222 | 9 53 17 107 36 Largest 2 | 2 2 2 2 2 Hottest 111 | 70 85 85 111 98 Shots Fired 426 | 18 106 34 202 66 Gun 352 | 18 102 17 171 44 Cannon 47 | . 2 17 8 20 Launcher 27 | . 2 . 23 2 Special . | . . . . . Kinetic 207 | 9 51 17 86 44 Thermal 192 | 9 53 17 93 20 Explosive 27 | . 2 . 23 2 Electromagnetic . | . . . . . Robot Hit Streak 16 | 4 10 7 16 13 Robot Miss Streak 6 | 3 6 4 5 6 Penetration Max . | . . . . . Secondary Targets 2 | . . . 1 1 Max Gunslinging Chain 1 | . . . 1 1 Shots Hit Robots 246 | 10 66 21 114 35 Core Hits 165 | 5 31 10 106 13 Critical Kills . | . . . . . Critical Parts Destroyed 1 | . . . 1 . Critical Strikes 16 | 1 5 3 6 1 Burn 13 | 1 5 2 5 . Destroy 1 | . . . 1 . Blast 2 | . . 1 . 1 Melee Attacks . | . . . . . Impact . | . . . . . Slashing . | . . . . . Piercing . | . . . . . Sneak Attacks . | . . . . . Combat Hostiles . | . . . . . Follow-up Attacks . | . . . . . Damage Inflicted 7237 | 113 825 374 5114 811 Guns 3262 | 113 695 150 1961 343 Cannons 630 | . 19 224 97 290 Explosions 3345 | . 111 . 3056 178 Melee . | . . . . . Ramming . | . . . . . Kinetic 1760 | 26 265 224 821 424 Thermal 2132 | 87 449 150 1237 209 Explosive 3345 | . 111 . 3056 178 Electromagnetic . | . . . . . Impact . | . . . . . Slashing . | . . . . . Piercing . | . . . . . Highest Corruption . | . . . . . Average Corruption . | . . . . . Corruption Purged . | . . . . . Corruption Blocked . | . . . . . Overload Shots . | . . . . . Overflow Damage 59 | . 11 . 44 4 Projectiles 15 | . 11 . . 4 Explosions 44 | . . . 44 . Melee . | . . . . . Knockbacks 10 | . . 2 . 8 Impact . | . . . . . Kinetic 9 | . . 2 . 7 Secondary 1 | . . . . 1 Self-Inflicted Damage 180 | . . . 135 45 Shots 4 | . . . 3 1 Rammed . | . . . . . Targets Rammed . | . . . . . Kicked . | . . . . . Crushed . | . . . . . Highest Temperature 390 | 80 279 120 259 390 Average Temperature 75 | 34 75 42 60 144 Received Heat Transfer 924 | . 273 54 441 156 Effects 4 | . . . . 4 Shutdowns 1 | . . . . 1 Interference 3 | . . . . 3 Siege Activations . | . . . . . Robots Corrupted . | . . . . . Combat Hostiles . | . . . . . Parts Fried . | . . . . . Impact Corruptions . | . . . . . Robots Melted 1 | . 1 . . . Combat Hostiles 1 | . 1 . . . Parts Melted 17 | 2 5 4 6 . Heat Transferred 5772 | 333 1702 592 2775 370 Parts Sabotaged . | . . . . . Parts Stolen . | . . . . . Parts Stripped . | . . . . . Power Chain Reactions . | . . . . . Missiles Intercepted . | . . . . . Alert | -11 -10 -10 -9 -9 ------- Run | Scr Mat Min Mat Min Peak Influence 1256 | 15 198 125 1256 564 Initial 489 | . 9 . . 489 Average 316 | 5 38 26 624 500 Maximum Alert Level 4 | . . . 4 2 Low Security (%) 55 | 100 100 100 15 . Level 1 9 | . . . 21 9 Level 2 21 | . . . 29 90 Level 3 1 | . . . 3 . Level 4 11 | . . . 30 . Level 5 . | . . . . . High Security . | . . . . . Max Security . | . . . . . Squads Dispatched 13 | . 1 1 10 1 Investigation 3 | . 1 1 1 . Extermination . | . . . . . Reinforcement 6 | . . . 5 1 Assault 4 | . . . 4 . Garrison . | . . . . . Intercept . | . . . . . Searches Triggered . | . . . . . Construction Impeded 2 | . . . 1 1 Haulers Reinforced . | . . . . . Active Scanning Responses . | . . . . . Cargo Convoy Interrupts . | . . . . . Stealth | -11 -10 -10 -9 -9 --------- Run | Scr Mat Min Mat Min Distress Signals 2 | . . . 2 . Communications Jammed . | . . . . . Distress Signals . | . . . . . Times Spotted 133 | . 20 12 87 14 Peak Tracking Total 8 | . 3 3 8 3 Tactical Retreats 6 | . . 5 . 1 Traps | -11 -10 -10 -9 -9 ------- Run | Scr Mat Min Mat Min Traps Triggered 2 | . 1 . 1 . Indirectly . | . . . . . Trap Hack Attempts . | . . . . . Triggered . | . . . . . Disarmed . | . . . . . Reprogrammed 4 | . 4 . . . Reused . | . . . . . Traps Extracted . | . . . . . Installed . | . . . . . Triggered . | . . . . . Machines | -11 -10 -10 -9 -9 ---------- Run | Scr Mat Min Mat Min Machines Disabled 5 | . . 1 3 1 Max in Single Turn 1 | . . 1 1 1 Machines Sabotaged . | . . . . . Garrisons Compromised . | . . . . . Overloaded Fab Kills . | . . . . . Hacking | -11 -10 -10 -9 -9 --------- Run | Scr Mat Min Mat Min Machines Accessed 19 | . 8 3 8 . Terminals 14 | . 7 1 6 . Fabricators . | . . . . . Repair Stations 1 | . 1 . . . Recycling Units 1 | . . . 1 . Scanalyzers 1 | . . . 1 . Garrison Access . | . . . . . Total Hacks 47 | . 22 4 21 . Successful 26 | . 12 3 11 . Failed 21 | . 10 1 10 . Catastrophic . | . . . . . Database Lockouts . | . . . . . Manual 35 | . 17 2 16 . Terminals 39 | . 19 2 18 . Fabricators . | . . . . . Repair Stations 3 | . 3 . . . Recycling Units 2 | . . . 2 . Scanalyzers 1 | . . . 1 . Garrison Access . | . . . . . Terminal Hacks 13 | . 4 3 6 . Robot Schematic 1 | . . 1 . . Open Door 2 | . . 2 . . Branch Access Points 1 | . . . 1 . Emergency Access Points 1 | . 1 . . . Terminal Index 2 | . 1 . 1 . Locate Traps 2 | . 1 . 1 . Reprogram Traps 1 | . 1 . . . Recall Reinforcements 1 | . . . 1 . Hauler Manifests 1 | . . . 1 . Registered Components 1 | . . . 1 . Fabricator Hacks . | . . . . . Repair Station Hacks 2 | . 2 . . . Scan Component 1 | . 1 . . . Repair 1 | . 1 . . . Recycling Unit Hacks 1 | . . . 1 . Report Inventory 1 | . . . 1 . Scanalyzer . | . . . . . Garrison Access Hacks . | . . . . . Unauthorized Hacks 10 | . 6 . 4 . Terminals 9 | . 6 . 3 . Assimilate 5 | . 4 . 1 . Botnet 2 | . 1 . 1 . Operators 2 | . 1 . 1 . Fabricators . | . . . . . Repair Stations . | . . . . . Recycling Units 1 | . . . 1 . Recyclers 1 | . . . 1 . Scanalyzers . | . . . . . Garrison Access . | . . . . . Data Cores Recovered . | . . . . . Used . | . . . . . Hacking Detections 14 | . 6 1 7 . Full Trace Events 3 | . 3 . . . Feedback Events . | . . . . . Feedback Blocked . | . . . . . Robot Schematics Acquired 1 | . . 1 . . Robots Built . | . . . . . Authchips . | . . . . . Time . | . . . . . Total Robot Build Rating . | . . . . . Part Schematics Acquired . | . . . . . Parts Built . | . . . . . Authchips . | . . . . . Time . | . . . . . Total Part Build Rating . | . . . . . Parts Repaired 1 | . 1 . . . Time 13 | . 13 . . . Parts Recycled . | . . . . . Recycled Matter . | . . . . . Retrieved Matter . | . . . . . Retrieved Components . | . . . . . Parts Scanalyzed . | . . . . . Part Schematics Acquired . | . . . . . Parts Damaged . | . . . . . Bothacking | -11 -10 -10 -9 -9 ------------ Run | Scr Mat Min Mat Min Used RIF Installer . | . . . . . Robots Hacked . | . . . . . Non-combat . | . . . . . Combat . | . . . . . Robot Hacks Applied . | . . . . . Relay Couplers Released . | . . . . . Fabnet Peak Effective % . | . . . . . Robots Rewired . | . . . . . Allies Hacked . | . . . . . Hacks Repelled . | . . . . . Allies | -11 -10 -10 -9 -9 -------- Run | Scr Mat Min Mat Min Total Allies 2 | . 2 . . . Largest Group 2 | . 2 2 2 1 Highest-Rated Group 20 | . 20 20 20 10 Highest-Rated Ally 10 | . 10 10 10 10 Total Orders 9 | . 3 2 2 2 STAY 6 | . 2 1 1 2 FOLLOW 3 | . 1 1 1 . Ally Attacks . | . . . . . Total Damage . | . . . . . Kills . | . . . . . Allies Corrupted . | . . . . . Allies Melted . | . . . . . Intel | -11 -10 -10 -9 -9 ------- Run | Scr Mat Min Mat Min Robot Analysis Total . | . . . . . Derelict Logs Recovered 3 | . . 1 . 2 Drone Launches . | . . . . . Drone Recoveries . | . . . . . Exploration | -11 -10 -10 -9 -9 ------------- Run | Scr Mat Min Mat Min Turns Passed 7654 | 133 2024 1654 3016 827 Spaces Moved 4043 | 63 1000 912 1632 436 Core 7 | 7 . . . . Treads 2729 | 56 1000 912 761 . Legs . | . . . . . Wheels 1307 | . . . 871 436 Hover . | . . . . . Flight . | . . . . . Fastest Speed 50 | 50 160 160 130 140 Average Speed 156 | 147 160 160 154 149 Slowest Speed 245 | 160 160 165 245 195 Overloaded Moves . | . . . . . Propulsion Burnouts . | . . . . . Robots Hopped . | . . . . . Cave-ins Triggered . | . . . . . Exploration Rate (%) 70 | 5 99 99 96 52 Regions Visited 4 Branch Regions 2 Pre-discovered Areas 1 | . . 1 . . Known Exits Taken 1 | . . . 1 . Unknown Exits Taken 3 | 1 1 1 . . Scrap Searched 4 | . . 1 . 3 Spaces Dug . | . . . . . Terrain Destroyed 221 | . 7 . 188 26 Melee . | . . . . . Projectile 1 | . . . 1 . AOE 220 | . 7 . 187 26 Terrain Rammed . | . . . . . Walls Destroyed . | . . . . . Machines Disabled . | . . . . . Actions | -11 -10 -10 -9 -9 --------- Run | Scr Mat Min Mat Min Total 4941 | 83 1328 1068 1920 542 Wait 538 | . 252 127 106 53 Move 4039 | 62 999 911 1631 436 Hop . | . . . . . Pick Up 45 | 5 12 5 21 2 Fast Attach 12 | 7 1 . 2 2 Attach 8 | . . . 3 5 Detach 1 | . . . 1 . Swap 44 | . 6 2 30 6 Drop 32 | . 5 6 19 2 Fire 222 | 9 53 17 107 36 Melee . | . . . . . Ram . | . . . . . Kick . | . . . . . Crush . | . . . . . Escape Stasis . | . . . . . Rewire . | . . . . . Trap . | . . . . . Miscellaneous . | . . . . . Route ------- -11/Scrapyard -10/Materials (discovered 4 exits: *Mat x3 / *Min) -10/Mines (discovered 3 exits: *Mat x2 / [*Exi]) -9/Materials (discovered 5 exits: *Mat x3 / *Min x2) -9/Mines (discovered 3 exits: *Mat x2 / *Zio) History --------- Turn | Location | Event 6 | -11/Scrapyard | Discovered new exit (range 14) 134 | -11/Scrapyard | Entered Materials 313 | -10/Materials | Build established: Mutant 547 | -10/Materials | Repaired Lgt. Treads 725 | -10/Materials | Discovered new exit (range 5) 1092 | -10/Materials | Discovered new exit (range 9) 1610 | -10/Materials | Discovered new exit (range 4) 1628 | -10/Materials | Discovered new exit (range 12) 2158 | -10/Materials | Entered Mines 2158 | -10/Mines | Accompanied by 2 allies 2174 | -10/Mines | Learned location of Storage (-8) 2262 | -10/Mines | Deemed a non-threat by the Exiles lab entrance 2263 | -10/Mines | Discovered new exit (range 5) 2324 | -10/Mines | Met a Derelict shopkeep closing up shop 2412 | -10/Mines | Discovered new exit (range 9) 2542 | -10/Mines | Discovered new exit (range 6) 2987 | -10/Mines | Learned location of 1 exit from Materials 3020 | -10/Mines | Met a Derelict who couldn't figure out how to use a Trap Extractor 3812 | -10/Mines | Entered Materials 3812 | -9/Materials | Accompanied by 2 allies 3812 | -9/Materials | Evolved 2 slots: Utility x2 3813 | -9/Materials | Identified exit to Materials 4283 | -9/Materials | Discovered exit to Materials (range 15) 4665 | -9/Materials | Discovered exit to Materials (range 15) 4891 | -9/Materials | Discovered new exit (range 15) 4991 | -9/Materials | Build established: Scavenger-Mutant 5047 | -9/Materials | Identified exit to Mines 5812 | -9/Materials | First assault squad dispatched 5883 | -9/Materials | Core integrity fell below 50% 5906 | -9/Materials | Destroyed 8 combat bots 5998 | -9/Materials | Build established: Mutant 6828 | -9/Materials | Entered Mines 6828 | -9/Mines | Accompanied by 1 ally 6835 | -9/Mines | Met a Derelict bent on vengeance 6840 | -9/Mines | Learned Materials interactive machine intel 7207 | -9/Mines | A Derelict revealed a hidden shortcut to a safe place 7226 | -9/Mines | Identified exit to Zion 7281 | -9/Mines | Build established: Scavenger-Mutant 7308 | -9/Mines | Discovered exit to Materials (range 7) 7416 | -9/Mines | Found a damaged Exp. Sensor Array with a note attached 7427 | -9/Mines | Core integrity fell below 20% 7461 | -9/Mines | Found Prototype Device 7461 | -9/Mines | Identified Exp. Sensor Array 7465 | -9/Mines | Lost 6 parts (2p1n1u2w) 7655 | -9/Mines | Destroyed by G-34 Mercenary with Small Laser Last Messages --------------- 07461_ Acquired Prototype Device. 07461_ Identified Exp. Sensor Array. 07462_ Acquired 2 matter. 07468_ Acquired 6 matter. 07483_ Acquired 19 matter. 07487_ Acquired 5 matter. 07501_ Acquired 11 matter. 07504_ Acquired Ion Engine. 07506_ Acquired 10 matter. 07518_ K-01 Serf collects debris. 07593_ G-47 Trooper knocked back. 07596_ G-34 Mercenary Aluminum Leg blasted off. 07596_ G-34 Mercenary destroyed. 07596_ G-47 Trooper destroyed. 07600_ Acquired 26 matter. 07631_ K-01 Serf collects debris. 07640_ Com. Wheel destroyed. 07642_ K-01 Serf collects debris. 07651_ G-34 Mercenary knocked back. 07655_ K-01 Serf collects debris. Map ----- +----------------------------------------------------+ | | | | | | | | | | | | | | | | | | | | | | | | | | | | | | | | | | | | | | | ?????????????????????????????????????????????????? | | ?????????????????????????????????????????????????? | | ????????????????????????##########??????####?????? | | ????????????????????????# *%%%%######## ##????? | | ??####??????????????????# """=## #????? | | ### #####??????????????# """*## !!! ##???? | | #??????????????#@ """!## ! ! ####? | | ## ####???????##### [## !!% ## | | ## ## ##??????# ggk """ ## !%! | | ### # ######## % """ ## ! | | ## """ ####### ## | | ### ## ## ## #?### #### | | ### ## ### ###################### ####??# | | # ## ??# #??????????????????# ##?????# | | ## ?## #??????????????????# x ##??????## | | ## ######?????????????## ########### | | #### #??????????????##### | | # #?# ######x#??????????????????# ####### | | ## ##?# ##????# ######??????######## ######## | | ?####??## #??????# #?????######### %[=*### | | ????????###???##??###### #????#### #####=#?# | | ?????????????## #??##### ##???### #####???#%#?? | | #????????????# ### % ##??## ##?######=### | | ###??????????# = #??## ##?# [! # | | ##?????????# !######??### ##?# =[! # | | ##????????## ##???????#### ###?# """= # | | % ##????????## ##?????????### ####?# """ # | | #?????????## ##???????????## #?# """ # | | ##?????????####????????????## ## #?# " # | | ####?????????????????????## ## #?# "% # | | ###??????????????###### ### " # | +----------------------------------------------------+ Best States ------------- Heat Dissipation 28 Energy Generation 12 Energy Capacity 265 Matter Stores 300 Matter Capacity 300 Sight Range 16 Robot Scan Range 20 Terrain Scan Density 10 Armor Coverage 375 Evasion (%) 40 Recoil Reduction 2 Item Schematics ----------------- None Robot Schematics ------------------ A-02 Transporter | -10/Mines | Hacked Fabricated ------------ Nothing Alien Tech Used ----------------- None Achievements -------------- None Challenges ------------ None Game ------ Seed BottomlessWeaponInitializer Manual? 0 Play Time 01:00:13 Cumulative 31.6 hours Start 2022.05.09 @ 17:15:17 End 2022.05.09 @ 19:10:53 Sessions 1 Manual Loads 0 Difficulty Rogue Special Mode None Game No. 9 Rogue 8 Adventurer 0 Explorer 1 Win Type - Total 0 Types 0/0/0/0/0/0/0/0/0 Lore% 16 Gallery% 28 Achievement% 32 Wizard Run 0 Options --------- ASCII 0 Keyboard 0 Movement Numpad Keybinds 0 Fullscreen 1 Font 18/SmallcapsGlow Map View 76x50 Tactical HUD 1 Map Filters NONE Filters NONE Steam 1 RUN: 90418789-da61-4f4f-87fa-f4e08a478f53